[Event "ONJK 2024 ABC"]
[Site "Velp, Netherlands"]
[Date "2024.08.02"]
[Round "1.16"]
[White "Maes, Lander"]
[Black "De Wit, Evan"]
[Result "0-1"]
[TimeControl "90 minutes + 30 seconds"]
[WhiteElo "1645"]
[BlackElo "1782"]

1. e4 {[%clk 01:30:56]} {[%emt 00:00:03]} c5 {[%clk 01:30:59]} {[%emt
00:00:01]} 2. Nc3 {[%clk 01:31:17]} {[%emt 00:00:10]} e5 {[%clk 01:31:11]}
{[%emt 00:00:17]} 3. g3 {[%clk 01:31:37]} {[%emt 00:00:06]} g6 {[%clk
01:31:32]} {[%emt 00:00:13]} 4. d3 {[%clk 01:31:46]} {[%emt 00:00:21]} Bg7
{[%clk 01:31:50]} {[%emt 00:00:12]} 5. Bg2 {[%clk 01:32:07]} {[%emt 00:00:09]}
Ne7 {[%clk 01:32:04]} {[%emt 00:00:15]} 6. Be3 {[%clk 01:32:15]} {[%emt
00:00:23]} d6 {[%clk 01:32:27]} {[%emt 00:00:07]} 7. f4 {[%clk 01:31:17]}
{[%emt 00:01:29]} O-O {[%clk 01:31:32]} {[%emt 00:01:24]} 8. Qd2 {[%clk
01:30:36]} {[%emt 00:01:11]} Nbc6 {[%clk 01:30:37]} {[%emt 00:01:25]} 9. Nf3
{[%clk 01:29:51]} {[%emt 00:01:14]} a6 {[%clk 01:29:09]} {[%emt 00:01:59]} 10.
h3 {[%clk 01:28:13]} {[%emt 00:02:07]} f5 {[%clk 01:27:51]} {[%emt 00:01:49]}
11. Rb1 {[%clk 01:06:21]} {[%emt 00:22:23]} b5 {[%clk 01:23:21]} {[%emt
00:04:59]} 12. fxe5 {[%clk 00:59:17]} {[%emt 00:07:34]} Nxe5 {[%clk 01:20:58]}
{[%emt 00:02:53]} 13. Nxe5 {[%clk 00:55:07]} {[%emt 00:04:41]} Bxe5 {[%clk
01:21:17]} {[%emt 00:00:10]} 14. Bf4 {[%clk 00:53:36]} {[%emt 00:02:02]} Bxf4
{[%clk 01:19:20]} {[%emt 00:02:27]} 15. Qxf4 {[%clk 00:53:05]} {[%emt
00:01:01]} fxe4 {[%clk 01:18:49]} {[%emt 00:01:00]} 16. Qxe4 {[%clk 00:52:40]}
{[%emt 00:00:55]} Ra7 {[%clk 01:16:10]} {[%emt 00:03:10]} 17. Qh4 {[%clk
00:44:51]} {[%emt 00:08:18]} Qe8 {[%clk 01:13:03]} {[%emt 00:03:37]} 18. Ne2
{[%clk 00:31:15]} {[%emt 00:14:06]} Nf5 {[%clk 01:10:03]} {[%emt 00:03:30]} 19.
Qe4 {[%clk 00:30:24]} {[%emt 00:01:22]} Re7 {[%clk 01:09:35]} {[%emt 00:00:57]}
20. Qd5+ {[%clk 00:26:35]} {[%emt 00:04:20]} Kg7 {[%clk 01:09:52]} {[%emt
00:00:12]} 21. Qf3 {[%clk 00:23:54]} {[%emt 00:03:12]} Nd4 {[%clk 01:10:04]}
{[%emt 00:00:17]} 22. Qd5 {[%clk 00:23:42]} {[%emt 00:00:41]} Rxe2+ {[%clk
01:10:19]} {[%emt 00:00:15]} 23. Kd1 {[%clk 00:23:53]} {[%emt 00:00:20]} Qe3
{[%clk 01:10:37]} {[%emt 00:00:12]} 0-1

[Event "ONJK 2024 ABC"]
[Site "Velp, Netherlands"]
[Date "2024.08.02"]
[Round "1.17"]
[White "Georgopoulos, Mylo"]
[Black "Deij, Casper"]
[Result "1/2-1/2"]
[TimeControl "90 minutes + 30 seconds"]
[WhiteElo "1776"]
[BlackElo "1629"]

1. e4 {[%clk 01:30:58]} {[%emt 00:00:01]} e5 {[%clk 01:30:57]} {[%emt
00:00:04]} 2. Nf3 {[%clk 01:31:25]} {[%emt 00:00:03]} Nc6 {[%clk 01:31:22]}
{[%emt 00:00:05]} 3. Bc4 {[%clk 01:31:52]} {[%emt 00:00:03]} Bc5 {[%clk
01:31:47]} {[%emt 00:00:05]} 4. d3 {[%clk 01:32:18]} {[%emt 00:00:04]} Nf6
{[%clk 01:32:13]} {[%emt 00:00:04]} 5. Bg5 {[%clk 01:32:41]} {[%emt 00:00:07]}
d6 {[%clk 01:32:36]} {[%emt 00:00:07]} 6. Nc3 {[%clk 01:33:02]} {[%emt
00:00:09]} Be6 {[%clk 01:32:54]} {[%emt 00:00:12]} 7. Nd2 {[%clk 01:33:08]}
{[%emt 00:00:24]} h6 {[%clk 01:32:36]} {[%emt 00:00:47]} 8. Bh4 {[%clk
01:33:26]} {[%emt 00:00:12]} g5 {[%clk 01:32:19]} {[%emt 00:00:47]} 9. Bg3
{[%clk 01:33:48]} {[%emt 00:00:09]} Qe7 {[%clk 01:30:53]} {[%emt 00:01:55]} 10.
Bxe6 {[%clk 01:32:52]} {[%emt 00:01:27]} fxe6 {[%clk 01:29:33]} {[%emt
00:01:49]} 11. Nb3 {[%clk 01:32:41]} {[%emt 00:00:42]} Bb6 {[%clk 01:29:02]}
{[%emt 00:01:01]} 12. h4 {[%clk 01:32:22]} {[%emt 00:00:49]} Qg7 {[%clk
01:26:59]} {[%emt 00:02:31]} 13. Qd2 {[%clk 01:30:46]} {[%emt 00:02:07]} O-O-O
{[%clk 01:24:27]} {[%emt 00:03:02]} 14. O-O-O {[%clk 01:30:52]} {[%emt
00:00:25]} Nd4 {[%clk 01:23:59]} {[%emt 00:00:58]} 15. Nxd4 {[%clk 01:30:16]}
{[%emt 00:01:06]} Bxd4 {[%clk 01:24:19]} {[%emt 00:00:10]} 16. f3 {[%clk
01:27:52]} {[%emt 00:02:54]} Nd7 {[%clk 01:20:57]} {[%emt 00:03:52]} 17. Bf2
{[%clk 01:27:22]} {[%emt 00:01:00]} Bxf2 {[%clk 01:19:13]} {[%emt 00:02:13]} 18.
Qxf2 {[%clk 01:27:41]} {[%emt 00:00:11]} Kb8 {[%clk 01:19:34]} {[%emt
00:00:10]} 19. Rh2 {[%clk 01:24:56]} {[%emt 00:03:15]} Rdf8 {[%clk 01:18:48]}
{[%emt 00:01:15]} 20. hxg5 {[%clk 01:24:29]} {[%emt 00:00:57]} hxg5 {[%clk
01:17:21]} {[%emt 00:01:57]} 21. Rdh1 {[%clk 01:24:16]} {[%emt 00:00:43]} Rxh2
{[%clk 01:17:04]} {[%emt 00:00:47]} 22. Rxh2 {[%clk 01:24:38]} {[%emt
00:00:08]} a6 {[%clk 01:16:02]} {[%emt 00:01:32]} 23. Nd1 {[%clk 01:24:28]}
{[%emt 00:00:40]} g4 {[%clk 01:14:56]} {[%emt 00:01:36]} 24. Qg3 {[%clk
01:23:37]} {[%emt 00:01:21]} Rg8 {[%clk 01:14:58]} {[%emt 00:00:28]} 25. Qxg4
{[%clk 01:15:35]} {[%emt 00:08:32]} Qxg4 {[%clk 01:14:21]} {[%emt 00:01:06]} 26.
fxg4 {[%clk 01:15:44]} {[%emt 00:00:22]} Nf6 {[%clk 01:12:44]} {[%emt
00:02:06]} 27. Ne3 {[%clk 01:14:34]} {[%emt 00:01:41]} Nxg4 {[%clk 01:12:39]}
{[%emt 00:00:34]} 28. Nxg4 {[%clk 01:14:56]} {[%emt 00:00:09]} Rxg4 {[%clk
01:13:02]} {[%emt 00:00:07]} 29. Kd2 {[%clk 01:15:06]} {[%emt 00:00:20]} Kc8
{[%clk 01:12:58]} {[%emt 00:00:34]} 30. Ke3 {[%clk 01:15:01]} {[%emt 00:00:36]}
Rg7 {[%clk 01:12:32]} {[%emt 00:00:55]} 31. d4 {[%clk 01:15:09]} {[%emt
00:00:23]} exd4+ {[%clk 01:12:38]} {[%emt 00:00:24]} 32. Kxd4 {[%clk 01:15:30]}
{[%emt 00:00:08]} Rg3 {[%clk 01:11:12]} {[%emt 00:01:55]} 33. b4 {[%clk
01:12:44]} {[%emt 00:03:18]} c6 {[%clk 01:10:57]} {[%emt 00:00:45]} 34. Rh8+
{[%clk 01:11:02]} {[%emt 00:02:11]} Kc7 {[%clk 01:10:55]} {[%emt 00:00:32]} 35.
Rh7+ {[%clk 01:11:02]} {[%emt 00:00:30]} Kc8 {[%clk 01:09:41]} {[%emt
00:01:45]} 36. Rh8+ {[%clk 01:10:48]} {[%emt 00:00:43]} Kc7 {[%clk 01:10:05]}
{[%emt 00:00:06]} 37. Rh7+ {[%clk 01:11:15]} {[%emt 00:00:04]} Kc8 {[%clk
01:10:31]} {[%emt 00:00:04]} 38. Rh8+ {[%clk 01:10:45]} {[%emt 00:00:59]}
1/2-1/2

[Event "ONJK 2024 ABC"]
[Site "Velp, Netherlands"]
[Date "2024.08.02"]
[Round "1.18"]
[White "Van Duuren, Gilead"]
[Black "De Jong, Lode"]
[Result "0-1"]
[TimeControl "90 minutes + 30 seconds"]
[WhiteElo "1629"]
[BlackElo "1755"]

1. d4 {[%clk 01:30:57]} {[%emt 00:00:02]} Nf6 {[%clk 01:30:54]} {[%emt
00:00:06]} 2. Bf4 {[%clk 01:31:00]} {[%emt 00:00:28]} e6 {[%clk 01:31:18]}
{[%emt 00:00:05]} 3. e3 {[%clk 01:31:17]} {[%emt 00:00:14]} c5 {[%clk
01:31:43]} {[%emt 00:00:05]} 4. c3 {[%clk 01:31:26]} {[%emt 00:00:20]} Nc6
{[%clk 01:32:09]} {[%emt 00:00:05]} 5. Nd2 {[%clk 01:31:30]} {[%emt 00:00:26]}
d5 {[%clk 01:32:17]} {[%emt 00:00:21]} 6. Ngf3 {[%clk 01:31:37]} {[%emt
00:00:24]} Nh5 {[%clk 01:31:27]} {[%emt 00:01:21]} 7. Bg3 {[%clk 01:30:39]}
{[%emt 00:01:28]} Nxg3 {[%clk 01:31:27]} {[%emt 00:00:29]} 8. hxg3 {[%clk
01:30:48]} {[%emt 00:00:20]} Bd6 {[%clk 01:31:36]} {[%emt 00:00:22]} 9. Qc2
{[%clk 01:30:35]} {[%emt 00:00:43]} h6 {[%clk 01:31:27]} {[%emt 00:00:39]} 10.
Be2 {[%clk 01:29:25]} {[%emt 00:01:40]} Bd7 {[%clk 01:26:59]} {[%emt 00:04:58]}
11. O-O-O {[%clk 01:28:23]} {[%emt 00:01:31]} Rc8 {[%clk 01:17:04]} {[%emt
00:10:26]} 12. g4 {[%clk 01:27:18]} {[%emt 00:01:35]} Nb4 {[%clk 01:12:00]}
{[%emt 00:05:35]} 13. Qb1 {[%clk 01:26:49]} {[%emt 00:00:59]} cxd4 {[%clk
01:08:48]} {[%emt 00:03:42]} 14. exd4 {[%clk 01:27:01]} {[%emt 00:00:16]} Qa5
{[%clk 00:59:01]} {[%emt 00:10:18]} 15. a3 {[%clk 01:26:29]} {[%emt 00:01:03]}
Na6 {[%clk 00:57:30]} {[%emt 00:02:01]} 16. g5 {[%clk 01:23:40]} {[%emt
00:03:19]} Ba4 {[%clk 00:51:43]} {[%emt 00:06:17]} 17. Rde1 {[%clk 01:23:28]}
{[%emt 00:00:41]} Rxc3+ {[%clk 00:51:48]} {[%emt 00:00:25]} 18. Qc2 {[%emt
00:05:04]} Rxc2+ 19. Kb1 {[%emt 00:00:10]} Rxb2+ {[%emt 00:00:20]} 20. Kxb2
{[%emt 00:00:02]} 0-1

[Event "ONJK 2024 ABC"]
[Site "Velp, Netherlands"]
[Date "2024.08.02"]
[Round "1.19"]
[White "Dijkhuijsen, Thomas"]
[Black "Breider, Jayden"]
[Result "1-0"]
[TimeControl "90 minutes + 30 seconds"]
[WhiteElo "1750"]
[BlackElo "1594"]

1. e4 {[%clk 01:30:58]} {[%emt 00:00:01]} c5 {[%clk 01:30:56]} {[%emt
00:00:05]} 2. Nf3 {[%clk 01:31:23]} {[%emt 00:00:05]} d6 {[%clk 01:31:20]}
{[%emt 00:00:06]} 3. d4 {[%clk 01:31:41]} {[%emt 00:00:12]} cxd4 {[%clk
01:31:44]} {[%emt 00:00:06]} 4. Nxd4 {[%clk 01:32:04]} {[%emt 00:00:07]} Nf6
{[%clk 01:31:58]} {[%emt 00:00:16]} 5. Nc3 {[%clk 01:32:30]} {[%emt 00:00:04]}
a6 {[%clk 01:32:23]} {[%emt 00:00:05]} 6. Bd3 {[%clk 01:32:37]} {[%emt
00:00:22]} e6 {[%clk 01:25:39]} {[%emt 00:07:15]} 7. O-O {[%clk 01:32:37]}
{[%emt 00:00:29]} Bd7 {[%clk 01:24:12]} {[%emt 00:01:57]} 8. Re1 {[%clk
01:32:15]} {[%emt 00:00:52]} Nc6 {[%clk 01:24:26]} {[%emt 00:00:16]} 9. Be3
{[%clk 01:31:46]} {[%emt 00:00:58]} Nxd4 {[%clk 01:15:35]} {[%emt 00:09:21]} 10.
Bxd4 {[%clk 01:32:01]} {[%emt 00:00:15]} e5 {[%clk 01:16:04]} {[%emt 00:00:02]}
11. Be3 {[%clk 01:31:54]} {[%emt 00:00:36]} Be6 {[%clk 01:11:32]} {[%emt
00:05:02]} 12. Qd2 {[%clk 01:28:01]} {[%emt 00:04:23]} Ng4 {[%clk 01:07:26]}
{[%emt 00:04:36]} 13. h3 {[%clk 01:26:53]} {[%emt 00:01:38]} Nxe3 {[%clk
01:06:58]} {[%emt 00:00:58]} 14. Qxe3 {[%clk 01:26:55]} {[%emt 00:00:28]} Be7
{[%clk 01:06:49]} {[%emt 00:00:40]} 15. Nd5 {[%clk 01:25:47]} {[%emt 00:01:38]}
Bxd5 {[%clk 01:05:34]} {[%emt 00:01:45]} 16. exd5 {[%clk 01:26:09]} {[%emt
00:00:07]} Bg5 {[%clk 01:04:57]} {[%emt 00:01:08]} 17. Qe4 {[%clk 01:21:13]}
{[%emt 00:05:26]} b5 {[%clk 01:01:26]} {[%emt 00:04:00]} 18. a4 {[%clk
01:18:43]} {[%emt 00:03:01]} Bd2 {[%clk 00:55:06]} {[%emt 00:06:49]} 19. Red1
{[%clk 01:17:33]} {[%emt 00:01:40]} Bg5 {[%clk 00:52:14]} {[%emt 00:03:23]} 20.
axb5 {[%clk 01:17:18]} {[%emt 00:00:45]} axb5 {[%clk 00:51:48]} {[%emt
00:00:56]} 21. Bxb5+ {[%clk 01:15:40]} {[%emt 00:02:07]} Ke7 {[%clk 00:52:09]}
{[%emt 00:00:09]} 22. Qf5 {[%clk 01:14:07]} {[%emt 00:02:03]} f6 {[%clk
00:44:42]} {[%emt 00:07:57]} 23. Qe6+ {[%clk 01:10:21]} {[%emt 00:04:16]} Kf8
{[%clk 00:45:05]} {[%emt 00:00:08]} 24. Bc6 {[%clk 01:08:24]} {[%emt 00:02:28]}
Rc8 {[%clk 00:44:13]} {[%emt 00:01:19]} 25. Ra7 {[%clk 01:08:17]} {[%emt
00:00:39]} 1-0

[Event "ONJK 2024 ABC"]
[Site "Velp, Netherlands"]
[Date "2024.08.02"]
[Round "1.20"]
[White "Kapteijns, Niels"]
[Black "Vogels, Mathijs"]
[Result "0-1"]
[TimeControl "90 minutes + 30 seconds"]
[WhiteElo "1559"]
[BlackElo "1732"]

1. d4 {[%clk 01:30:58]} {[%emt 00:00:02]} d5 {[%clk 01:30:54]} {[%emt
00:00:05]} 2. g3 {[%clk 01:31:23]} {[%emt 00:00:06]} g6 {[%clk 01:31:02]}
{[%emt 00:00:22]} 3. Bg2 {[%clk 01:31:40]} {[%emt 00:00:13]} Bg7 {[%clk
01:31:26]} {[%emt 00:00:05]} 4. Nf3 {[%clk 01:31:56]} {[%emt 00:00:15]} Nc6
{[%clk 01:31:32]} {[%emt 00:00:24]} 5. O-O {[%clk 01:31:57]} {[%emt 00:00:29]}
e6 {[%clk 01:31:47]} {[%emt 00:00:16]} 6. Bf4 {[%clk 01:31:18]} {[%emt
00:01:09]} Nge7 {[%clk 01:32:00]} {[%emt 00:00:18]} 7. Nc3 {[%clk 01:30:40]}
{[%emt 00:01:07]} a6 {[%clk 01:32:13]} {[%emt 00:00:17]} 8. Qd2 {[%clk
01:28:16]} {[%emt 00:02:54]} Nf5 {[%clk 01:32:03]} {[%emt 00:00:40]} 9. Be3
{[%clk 01:24:35]} {[%emt 00:04:12]} O-O {[%clk 01:31:36]} {[%emt 00:00:56]} 10.
Nd1 {[%clk 01:22:13]} {[%emt 00:02:52]} f6 {[%clk 01:30:28]} {[%emt 00:01:38]}
11. g4 {[%clk 01:19:45]} {[%emt 00:02:58]} Nxe3 {[%clk 01:28:48]} {[%emt
00:02:10]} 12. Qxe3 {[%clk 01:19:54]} {[%emt 00:00:21]} e5 {[%clk 01:28:11]}
{[%emt 00:01:08]} 13. h3 {[%clk 01:18:39]} {[%emt 00:01:45]} exd4 {[%clk
01:28:00]} {[%emt 00:00:42]} 14. Nxd4 {[%clk 01:18:50]} {[%emt 00:00:17]} Nxd4
{[%clk 01:28:25]} {[%emt 00:00:07]} 15. Qxd4 {[%clk 01:18:42]} {[%emt
00:00:37]} c6 {[%clk 01:28:21]} {[%emt 00:00:34]} 16. c3 {[%clk 01:16:33]}
{[%emt 00:02:40]} f5 {[%clk 01:28:38]} {[%emt 00:00:12]} 17. Qb4 {[%clk
01:14:57]} a5 {[%clk 01:28:52]} {[%emt 00:02:22]} 18. Qb3 {[%clk 01:10:59]} b5
{[%clk 01:29:14]} {[%emt 00:04:36]} 19. Qc2 {[%clk 01:11:02]} {[%emt 00:00:27]}
fxg4 {[%clk 01:29:32]} {[%emt 00:00:11]} 20. hxg4 {[%clk 01:11:15]} {[%emt
00:00:18]} Bxg4 {[%clk 01:29:52]} {[%emt 00:00:10]} 21. f3 {[%clk 01:07:22]}
{[%emt 00:04:23]} Bf5 {[%clk 01:27:21]} {[%emt 00:03:00]} 22. e4 {[%clk
01:06:19]} {[%emt 00:01:34]} dxe4 {[%clk 01:27:42]} {[%emt 00:00:08]} 23. fxe4
{[%clk 01:06:36]} {[%emt 00:00:13]} Qb6+ {[%clk 01:27:54]} {[%emt 00:00:18]} 24.
Qf2 {[%clk 01:05:25]} {[%emt 00:01:41]} Qxf2+ {[%clk 01:27:49]} {[%emt
00:00:36]} 25. Nxf2 {[%clk 01:05:09]} {[%emt 00:00:46]} Be6 {[%clk 01:27:25]}
{[%emt 00:00:53]} 26. e5 {[%clk 00:58:08]} {[%emt 00:07:31]} Rac8 {[%clk
01:26:59]} {[%emt 00:00:55]} 27. Rfe1 {[%clk 00:58:00]} {[%emt 00:00:39]} Rfe8
{[%clk 01:22:49]} {[%emt 00:04:38]} 28. Re3 {[%clk 00:56:03]} {[%emt 00:02:29]}
Bh6 {[%clk 01:18:17]} {[%emt 00:05:01]} 29. Ree1 {[%clk 00:53:11]} {[%emt
00:03:23]} Bf5 {[%clk 01:17:51]} {[%emt 00:00:56]} 30. Bh3 {[%clk 00:51:15]}
{[%emt 00:02:25]} Bxh3 {[%clk 01:17:50]} {[%emt 00:00:31]} 31. Nxh3 {[%clk
00:51:35]} {[%emt 00:00:11]} Re6 {[%clk 01:18:01]} {[%emt 00:00:18]} 32. a4
{[%clk 00:46:10]} {[%emt 00:05:56]} Ra8 {[%clk 01:17:47]} {[%emt 00:00:44]} 33.
Nf2 {[%clk 00:45:02]} {[%emt 00:01:37]} Bg7 {[%clk 01:17:09]} {[%emt 00:01:08]}
34. Nd3 {[%clk 00:41:43]} {[%emt 00:03:49]} Rd8 {[%clk 01:17:16]} {[%emt
00:00:23]} 35. Re3 {[%clk 00:41:32]} {[%emt 00:00:41]} Ra8 {[%clk 01:09:58]}
{[%emt 00:07:48]} 36. b3 {[%clk 00:39:03]} {[%emt 00:03:00]} Bf8 {[%clk
01:09:31]} {[%emt 00:00:57]} 37. Re4 {[%clk 00:32:37]} {[%emt 00:06:56]} Bd6
{[%clk 01:07:22]} {[%emt 00:02:38]} 38. Rae1 {[%clk 00:30:30]} {[%emt
00:02:37]} Bc7 {[%clk 01:07:25]} {[%emt 00:00:27]} 39. Kg2 {[%clk 00:28:21]}
{[%emt 00:02:40]} Rae8 {[%clk 01:07:20]} {[%emt 00:00:35]} 40. Kf3 {[%clk
00:25:28]} {[%emt 00:03:23]} Kg7 {[%clk 01:05:24]} {[%emt 00:02:25]} 41. Kf4
{[%clk 00:24:42]} {[%emt 00:01:17]} Rf8+ {[%clk 01:04:44]} {[%emt 00:01:11]} 42.
Kg4 {[%clk 00:23:21]} {[%emt 00:01:50]} h5+ {[%clk 01:04:40]} {[%emt 00:00:33]}
43. Kh4 {[%clk 00:21:45]} {[%emt 00:02:07]} Kh6 {[%clk 01:04:20]} {[%emt
00:00:50]} 44. Kg3 {[%clk 00:18:55]} {[%emt 00:03:20]} Rf5 {[%clk 01:02:29]}
{[%emt 00:02:21]} 45. Kh3 {[%clk 00:16:56]} {[%emt 00:02:29]} Rf3+ {[%clk
01:02:49]} {[%emt 00:00:09]} 0-1

[Event "ONJK 2024 ABC"]
[Site "Velp, Netherlands"]
[Date "2024.08.03"]
[Round "2.1"]
[White "Elferink, Leon"]
[Black "Rogozyanskiy, Alexander"]
[Result "1-0"]
[TimeControl "90 minutes + 30 seconds"]
[WhiteElo "1900"]
[BlackElo "1803"]

1. e4 {[%clk 01:30:57]} {[%emt 00:00:03]} c5 {[%clk 01:30:54]} {[%emt
00:00:06]} 2. Nf3 {[%clk 01:31:19]} {[%emt 00:00:08]} e6 {[%clk 01:31:20]}
{[%emt 00:00:04]} 3. d4 {[%clk 01:30:41]} {[%emt 00:01:08]} cxd4 {[%clk
01:31:43]} {[%emt 00:00:08]} 4. Nxd4 {[%clk 01:31:06]} {[%emt 00:00:04]} a6
{[%clk 01:32:11]} {[%emt 00:00:02]} 5. Nc3 {[%clk 01:30:31]} {[%emt 00:01:05]}
Qc7 {[%clk 01:32:23]} {[%emt 00:00:18]} 6. a3 {[%clk 01:26:08]} {[%emt
00:04:53]} Nf6 {[%clk 01:27:29]} {[%emt 00:05:23]} 7. Be2 {[%clk 01:21:53]}
{[%emt 00:04:45]} Bc5 {[%clk 01:21:50]} {[%emt 00:06:09]} 8. Be3 {[%clk
01:17:32]} {[%emt 00:04:51]} d6 {[%clk 01:16:09]} {[%emt 00:06:11]} 9. Qd2
{[%clk 01:14:45]} {[%emt 00:03:17]} b5 {[%clk 01:01:03]} {[%emt 00:15:37]} 10.
O-O {[%clk 01:05:58]} {[%emt 00:09:16]} Bb7 {[%clk 00:59:37]} {[%emt 00:01:57]}
11. Bf3 {[%clk 00:49:23]} {[%emt 00:17:04]} O-O {[%clk 00:55:41]} {[%emt
00:04:25]} 12. Nb3 {[%clk 00:38:08]} {[%emt 00:11:47]} Nbd7 {[%clk 00:49:17]}
{[%emt 00:06:53]} 13. Rad1 {[%clk 00:36:34]} {[%emt 00:02:05]} Ne5 {[%clk
00:45:21]} {[%emt 00:04:26]} 14. Bf4 {[%clk 00:33:00]} {[%emt 00:04:03]} Nc4
{[%clk 00:41:30]} {[%emt 00:04:22]} 15. Qc1 {[%clk 00:33:19]} {[%emt 00:00:11]}
Rfd8 {[%clk 00:40:04]} {[%emt 00:01:56]} 16. Nxc5 {[%clk 00:30:55]} {[%emt
00:02:55]} Qxc5 {[%clk 00:40:14]} {[%emt 00:00:19]} 17. Rfe1 {[%clk 00:23:16]}
{[%emt 00:08:08]} Rac8 {[%clk 00:31:02]} {[%emt 00:09:43]} 18. Be3 {[%clk
00:22:34]} {[%emt 00:01:12]} Qc7 {[%clk 00:30:23]} {[%emt 00:01:10]} 19. Bd2
{[%clk 00:14:45]} {[%emt 00:08:19]} Nd7 {[%clk 00:29:01]} {[%emt 00:01:51]} 20.
Be2 {[%clk 00:14:37]} {[%emt 00:00:39]} Ndb6 {[%clk 00:23:16]} {[%emt
00:06:15]} 21. Be3 {[%clk 00:12:41]} {[%emt 00:02:26]} Nxe3 {[%clk 00:18:41]}
{[%emt 00:05:05]} 22. Qxe3 {[%clk 00:13:01]} {[%emt 00:00:09]} Nc4 {[%clk
00:18:55]} {[%emt 00:00:16]} 23. Bxc4 {[%clk 00:12:27]} {[%emt 00:01:04]} Qxc4
{[%clk 00:19:16]} {[%emt 00:00:09]} 24. Rd4 {[%clk 00:12:45]} {[%emt 00:00:12]}
Qc5 {[%clk 00:19:30]} {[%emt 00:00:16]} 25. Red1 {[%clk 00:12:59]} {[%emt
00:00:16]} Rc6 {[%clk 00:17:42]} {[%emt 00:02:18]} 26. e5 {[%clk 00:12:11]}
{[%emt 00:01:19]} d5 {[%clk 00:17:39]} {[%emt 00:00:33]} 27. Qg5 {[%clk
00:11:41]} {[%emt 00:00:59]} Re8 {[%clk 00:17:12]} {[%emt 00:00:57]} 28. Rg4
{[%clk 00:10:40]} {[%emt 00:01:30]} g6 {[%clk 00:16:35]} {[%emt 00:01:08]} 29.
h4 {[%clk 00:10:38]} {[%emt 00:00:33]} Qe7 {[%clk 00:16:52]} {[%emt 00:00:12]}
30. Qh6 {[%clk 00:10:18]} {[%emt 00:00:50]} Rc4 {[%clk 00:15:31]} {[%emt
00:01:51]} 31. Rdd4 {[%clk 00:09:23]} {[%emt 00:01:25]} Rxd4 {[%clk 00:15:10]}
{[%emt 00:00:51]} 32. Rxd4 {[%clk 00:09:47]} {[%emt 00:00:06]} Rc8 {[%clk
00:13:38]} {[%emt 00:02:03]} 33. h5 {[%clk 00:09:43]} {[%emt 00:00:34]} Rc4
{[%clk 00:13:25]} {[%emt 00:00:43]} 34. hxg6 {[%clk 00:09:58]} {[%emt
00:00:15]} hxg6 {[%clk 00:12:27]} {[%emt 00:01:28]} 35. Qe3 {[%clk 00:07:55]}
{[%emt 00:02:33]} Qc5 {[%clk 00:10:51]} {[%emt 00:02:06]} 36. Rxc4 {[%clk
00:07:34]} {[%emt 00:00:51]} Qxe3 {[%clk 00:11:15]} {[%emt 00:00:05]} 37. Rc8+
{[%clk 00:07:58]} {[%emt 00:00:06]} Bxc8 {[%clk 00:11:39]} {[%emt 00:00:06]} 38.
fxe3 {[%clk 00:08:25]} {[%emt 00:00:03]} g5 {[%clk 00:11:36]} {[%emt 00:00:33]}
39. Kf2 {[%clk 00:08:17]} {[%emt 00:00:39]} Kg7 {[%clk 00:10:46]} {[%emt
00:01:20]} 40. e4 {[%clk 00:08:17]} {[%emt 00:00:30]} dxe4 {[%clk 00:10:00]}
{[%emt 00:01:16]} 41. Nxe4 {[%clk 00:08:10]} {[%emt 00:00:36]} Kg6 {[%clk
00:09:58]} {[%emt 00:00:33]} 42. g4 {[%clk 00:08:17]} {[%emt 00:00:24]} a5
{[%clk 00:08:00]} {[%emt 00:02:28]} 43. b4 {[%clk 00:08:09]} {[%emt 00:00:38]}
axb4 {[%clk 00:07:55]} {[%emt 00:00:35]} 44. axb4 {[%clk 00:08:34]} {[%emt
00:00:05]} Bb7 {[%clk 00:08:23]} {[%emt 00:00:02]} 45. Ke3 {[%clk 00:08:47]}
{[%emt 00:00:17]} Bc6 {[%clk 00:06:38]} {[%emt 00:02:15]} 46. Kd4 {[%clk
00:08:53]} {[%emt 00:00:24]} Be8 {[%clk 00:03:26]} {[%emt 00:03:42]} 47. Nf6
{[%clk 00:08:51]} {[%emt 00:00:32]} Bc6 {[%clk 00:02:42]} {[%emt 00:01:14]} 48.
Kc5 {[%clk 00:09:17]} {[%emt 00:00:04]} Bf3 {[%clk 00:02:49]} {[%emt 00:00:23]}
49. Kxb5 {[%clk 00:09:27]} {[%emt 00:00:20]} Bxg4 {[%clk 00:02:48]} {[%emt
00:00:31]} 50. Nxg4 {[%clk 00:09:50]} {[%emt 00:00:06]} Kf5 {[%emt 00:00:05]}
51. Ka6 {[%clk 00:08:47]} {[%emt 00:01:32]} Kxg4 {[%clk 00:03:12]} {[%emt
00:00:32]} 52. b5 {[%clk 00:09:13]} {[%emt 00:00:04]} Kf3 {[%clk 00:03:10]}
{[%emt 00:00:31]} 53. b6 {[%clk 00:09:38]} {[%emt 00:00:05]} g4 {[%clk
00:03:28]} {[%emt 00:00:12]} 54. b7 {[%clk 00:10:05]} {[%emt 00:00:03]} g3
{[%clk 00:03:57]} {[%emt 00:00:01]} 55. b8=Q {[%clk 00:10:26]} {[%emt
00:00:09]} g2 {[%clk 00:04:25]} {[%emt 00:00:02]} 56. Qb6 {[%clk 00:10:39]}
{[%emt 00:00:16]} 1-0